[Event "January 2 Early 2024"]
[Site "https://www.chess.com"]
[Date "2024.01.02"]
[Round "3"]
[White "Aldokhin, Ivan"]
[Black "Corrales Jimenez, Fidel"]
[Result "0-1"]
[Board "29"]
[TimeControl "180+1"]
[WhiteFideId "24115720"]
[BlackFideId "3506690"]
[WhiteElo "2682"]
[BlackElo "2920"]
[WhiteTeam "RUS"]
[BlackTeam "USA"]
[WhiteClock "0:00:03"]
[BlackClock "0:01:32"]

1. e4 {[%clk 0:03:00]}  c5 {[%clk 0:02:40]} 2. Nf3 {[%clk 0:03:00]}  d6 {[%clk 0:02:30]} 3. d4 {[%clk 0:03:00]}  cxd4 {[%clk 0:02:31]} 4. Nxd4 {[%clk 0:03:00]}  Nf6 {[%clk 0:02:31]} 5. Nc3 {[%clk 0:03:00]}  a6 {[%clk 0:02:31]} 6. Bc4 {[%clk 0:03:01]}  e6 {[%clk 0:02:30]} 7. Bb3 {[%clk 0:03:01]}  Nbd7 {[%clk 0:02:30]} 8. Be3 {[%clk 0:02:58]}  Nc5 {[%clk 0:02:29]} 9. f3 {[%clk 0:02:58]}  Qc7 {[%clk 0:02:28]} 10. Qd2 {[%clk 0:02:58]}  b5 {[%clk 0:02:28]} 11. g4 {[%clk 0:02:55]}  b4 {[%clk 0:02:27]} 12. Nce2 {[%clk 0:02:43]}  a5 {[%clk 0:02:25]} 13. g5 {[%clk 0:02:36]}  Nfd7 {[%clk 0:02:25]} 14. Nb5 {[%clk 0:01:30]}  Qb8 {[%clk 0:02:24]} 15. c4 {[%clk 0:01:09]}  a4 {[%clk 0:01:59]} 16. Bc2 {[%clk 0:01:03]}  Ne5 {[%clk 0:01:59]} 17. Ned4 {[%clk 0:00:27]}  Nxc4 {[%clk 0:01:59]} 18. Qe2 {[%clk 0:00:24]}  Nxe3 {[%clk 0:01:59]} 19. Qxe3 {[%clk 0:00:24]}  e5 {[%clk 0:02:00]} 20. Nf5 {[%clk 0:00:06]}  Qxb5 {[%clk 0:01:59]} 21. Rd1 {[%clk 0:00:06]}  b3 {[%clk 0:01:50]} 22. axb3 {[%clk 0:00:04]}  axb3 {[%clk 0:01:51]} 23. Bb1 {[%clk 0:00:03]}  Ra1 {[%clk 0:01:47]} 24. Kf2 {[%clk 0:00:02]}  Rxb1 {[%clk 0:01:32]} 25. Rxb1 {[%clk 0:00:02]}  g6 {[%clk 0:01:32]} 26. Ng3 {[%clk 0:00:01]}  Be7 {[%clk 0:01:33]} 27. h4 {[%clk 0:00:02]}  Ne6 {[%clk 0:01:32]} 28. h5 {[%clk 0:00:02]}  d5 {[%clk 0:01:32]} 29. exd5 {[%clk 0:00:02]}  Bc5 {[%clk 0:01:32]} 30. Ne4 {[%clk 0:00:01]}  Bxe3+ {[%clk 0:01:32]} 31. Kxe3 {[%clk 0:00:02]}  Qb6+ {[%clk 0:01:32]} 32. Ke2 {[%clk 0:00:02]}  Nf4+ {[%clk 0:01:32]} 33. Kd2 {[%clk 0:00:03]}  Qd4+ {[%clk 0:01:32]} 34. Ke1 {[%clk 0:00:02]}  Qe3+ {[%clk 0:01:32]} 35. Kf1 {[%clk 0:00:02]}  Qe2+ {[%clk 0:01:32]} 36. Kg1 {[%clk 0:00:03]}  Qg2# {[%clk 0:01:32]} 0-1

[Event "January 2 Early 2024"]
[Site "https://www.chess.com"]
[Date "2024.01.02"]
[Round "3"]
[White "Han, Yichen"]
[Black "Klimkowski, Jan"]
[Result "1/2-1/2"]
[Board "30"]
[TimeControl "180+1"]
[WhiteFideId "1054430"]
[BlackFideId "21856222"]
[WhiteElo "2680"]
[BlackElo "2916"]
[WhiteTeam "NED"]
[BlackTeam "POL"]
[WhiteClock "0:01:39"]
[BlackClock "0:00:19"]

1. d4 {[%clk 0:03:00]}  Nf6 {[%clk 0:02:59]} 2. Nf3 {[%clk 0:03:00]}  e6 {[%clk 0:02:59]} 3. c4 {[%clk 0:02:52]}  d5 {[%clk 0:02:59]} 4. Bg5 {[%clk 0:02:50]}  dxc4 {[%clk 0:02:49]} 5. e3 {[%clk 0:02:49]}  Bb4+ {[%clk 0:02:44]} 6. Nc3 {[%clk 0:02:48]}  c5 {[%clk 0:02:34]} 7. Bxc4 {[%clk 0:02:44]}  O-O {[%clk 0:02:32]} 8. O-O {[%clk 0:02:42]}  cxd4 {[%clk 0:02:32]} 9. exd4 {[%clk 0:02:40]}  Bd6 {[%clk 0:02:20]} 10. d5 {[%clk 0:02:35]}  exd5 {[%clk 0:01:37]} 11. Nxd5 {[%clk 0:02:35]}  Nbd7 {[%clk 0:01:36]} 12. Qd4 {[%clk 0:02:21]}  h6 {[%clk 0:01:22]} 13. Bh4 {[%clk 0:02:02]}  Be7 {[%clk 0:00:50]} 14. Nxe7+ {[%clk 0:01:55]}  Qxe7 {[%clk 0:00:51]} 15. Rfe1 {[%clk 0:01:48]}  Qd8 {[%clk 0:00:19]} 16. Rf1 {[%clk 0:01:38]}  Qe7 {[%clk 0:00:18]} 17. Rfe1 {[%clk 0:01:38]}  Qd8 {[%clk 0:00:19]} 18. Rf1 {[%clk 0:01:39]}  Qe7 {[%clk 0:00:19]} 1/2-1/2

[Event "January 2 Early 2024"]
[Site "https://www.chess.com"]
[Date "2024.01.02"]
[Round "3"]
[White "Domingo Nunez, Alejandro"]
[Black "Pranav Anand"]
[Result "0-1"]
[Board "32"]
[TimeControl "180+1"]
[WhiteFideId "22245561"]
[BlackFideId "46626786"]
[WhiteElo "2661"]
[BlackElo "2911"]
[WhiteTeam "ESP"]
[BlackTeam "IND"]
[WhiteClock "0:00:00"]
[BlackClock "0:00:45"]

1. Nf3 {[%clk 0:03:00]}  d5 {[%clk 0:02:59]} 2. g3 {[%clk 0:03:01]}  Nc6 {[%clk 0:02:59]} 3. d4 {[%clk 0:03:00]}  Bf5 {[%clk 0:02:59]} 4. Bg2 {[%clk 0:02:51]}  Nb4 {[%clk 0:02:59]} 5. Na3 {[%clk 0:02:50]}  e6 {[%clk 0:03:00]} 6. O-O {[%clk 0:02:50]}  Be7 {[%clk 0:02:59]} 7. c3 {[%clk 0:02:51]}  Nc6 {[%clk 0:02:59]} 8. Nc2 {[%clk 0:02:51]}  h6 {[%clk 0:02:59]} 9. Re1 {[%clk 0:02:51]}  Nf6 {[%clk 0:02:59]} 10. Nd2 {[%clk 0:02:50]}  Ne4 {[%clk 0:02:46]} 11. Nxe4 {[%clk 0:02:47]}  Bxe4 {[%clk 0:02:42]} 12. f3 {[%clk 0:02:44]}  Bh7 {[%clk 0:02:41]} 13. e4 {[%clk 0:02:44]}  O-O {[%clk 0:02:40]} 14. exd5 {[%clk 0:02:27]}  exd5 {[%clk 0:02:39]} 15. f4 {[%clk 0:02:27]}  Qd7 {[%clk 0:02:25]} 16. Ne3 {[%clk 0:02:26]}  Be4 {[%clk 0:02:24]} 17. Bxe4 {[%clk 0:02:06]}  dxe4 {[%clk 0:02:25]} 18. d5 {[%clk 0:02:07]}  Nd8 {[%clk 0:02:24]} 19. Qd4 {[%clk 0:01:50]}  f5 {[%clk 0:02:20]} 20. Nc4 {[%clk 0:01:37]}  Bf6 {[%clk 0:02:12]} 21. Ne5 {[%clk 0:01:30]}  Qd6 {[%clk 0:02:12]} 22. Be3 {[%clk 0:01:29]}  Nf7 {[%clk 0:02:04]} 23. Nxf7 {[%clk 0:01:28]}  Bxd4 {[%clk 0:01:58]} 24. Nxd6 {[%clk 0:01:27]}  Bxe3+ {[%clk 0:01:59]} 25. Rxe3 {[%clk 0:01:28]}  cxd6 {[%clk 0:02:00]} 26. c4 {[%clk 0:01:25]}  Rfc8 {[%clk 0:02:00]} 27. b3 {[%clk 0:01:24]}  a5 {[%clk 0:01:51]} 28. g4 {[%clk 0:01:22]}  fxg4 {[%clk 0:01:40]} 29. Rxe4 {[%clk 0:01:21]}  Re8 {[%clk 0:01:33]} 30. Rae1 {[%clk 0:01:21]}  Rxe4 {[%clk 0:01:26]} 31. Rxe4 {[%clk 0:01:21]}  Kf7 {[%clk 0:01:26]} 32. Re6 {[%clk 0:01:21]}  Ra6 {[%clk 0:01:22]} 33. Kf2 {[%clk 0:01:15]}  a4 {[%clk 0:01:21]} 34. b4 {[%clk 0:01:11]}  a3 {[%clk 0:01:22]} 35. c5 {[%clk 0:00:51]}  Ra4 {[%clk 0:01:17]} 36. cxd6 {[%clk 0:00:51]}  Ra8 {[%clk 0:01:16]} 37. Ke3 {[%clk 0:00:48]}  h5 {[%clk 0:01:09]} 38. f5 {[%clk 0:00:47]}  h4 {[%clk 0:01:06]} 39. Kf2 {[%clk 0:00:36]}  Rd8 {[%clk 0:01:06]} 40. b5 {[%clk 0:00:30]}  Rc8 {[%clk 0:01:04]} 41. b6 {[%clk 0:00:28]}  Rc2+ {[%clk 0:01:00]} 42. Ke3 {[%clk 0:00:21]}  Rc8 {[%clk 0:00:53]} 43. Kf4 {[%clk 0:00:18]}  g3 {[%clk 0:00:53]} 44. Kf3 {[%clk 0:00:15]}  Rc3+ {[%clk 0:00:50]} 45. Kg4 {[%clk 0:00:13]}  gxh2 {[%clk 0:00:47]} 46. Re1 {[%clk 0:00:09]}  Rg3+ {[%clk 0:00:46]} 47. Kh5 {[%clk 0:00:00]}  Rg1 {[%clk 0:00:45]} 0-1

[Event "January 2 Early 2024"]
[Site "https://www.chess.com"]
[Date "2024.01.02"]
[Round "3"]
[White "Zhigalko, Sergei"]
[Black "Koshulyan, Egor A."]
[Result "1-0"]
[Board "33"]
[TimeControl "180+1"]
[WhiteFideId "13502956"]
[BlackFideId "24237000"]
[WhiteElo "2905"]
[BlackElo "2660"]
[WhiteTeam "BLR"]
[BlackTeam "RUS"]
[WhiteClock "0:00:39"]
[BlackClock "0:00:19"]

1. e4 {[%clk 0:03:00]}  c5 {[%clk 0:02:51]} 2. Nf3 {[%clk 0:03:01]}  Nc6 {[%clk 0:02:50]} 3. c3 {[%clk 0:03:01]}  Nf6 {[%clk 0:02:47]} 4. e5 {[%clk 0:02:59]}  Nd5 {[%clk 0:02:48]} 5. Bc4 {[%clk 0:03:00]}  e6 {[%clk 0:02:48]} 6. O-O {[%clk 0:03:00]}  d6 {[%clk 0:02:48]} 7. d4 {[%clk 0:03:00]}  cxd4 {[%clk 0:02:48]} 8. cxd4 {[%clk 0:03:01]}  Be7 {[%clk 0:02:48]} 9. Bd2 {[%clk 0:03:01]}  O-O {[%clk 0:02:46]} 10. Nc3 {[%clk 0:03:02]}  dxe5 {[%clk 0:02:34]} 11. dxe5 {[%clk 0:03:02]}  Nxc3 {[%clk 0:02:31]} 12. Bxc3 {[%clk 0:03:02]}  b6 {[%clk 0:02:32]} 13. Qe2 {[%clk 0:03:02]}  Bb7 {[%clk 0:02:32]} 14. a3 {[%clk 0:03:02]}  Qc7 {[%clk 0:02:23]} 15. Bd3 {[%clk 0:03:02]}  Rfd8 {[%clk 0:02:19]} 16. Rfe1 {[%clk 0:03:02]}  a6 {[%clk 0:02:06]} 17. Rad1 {[%clk 0:02:48]}  b5 {[%clk 0:02:02]} 18. Qe4 {[%clk 0:02:48]}  g6 {[%clk 0:02:01]} 19. Qf4 {[%clk 0:02:49]}  f5 {[%clk 0:01:18]} 20. h4 {[%clk 0:02:44]}  Bf8 {[%clk 0:01:12]} 21. Ng5 {[%clk 0:02:06]}  Qe7 {[%clk 0:01:10]} 22. Bb1 {[%clk 0:01:52]}  h6 {[%clk 0:01:04]} 23. Nh3 {[%clk 0:01:51]}  Bg7 {[%clk 0:01:03]} 24. Qg3 {[%clk 0:01:51]}  Qf7 {[%clk 0:00:50]} 25. Rd6 {[%clk 0:01:47]}  Rxd6 {[%clk 0:00:46]} 26. exd6 {[%clk 0:01:46]}  e5 {[%clk 0:00:47]} 27. f4 {[%clk 0:00:41]}  e4 {[%clk 0:00:45]} 28. h5 {[%clk 0:00:41]}  Kh7 {[%clk 0:00:36]} 29. Ba2 {[%clk 0:00:39]}  Qe8 {[%clk 0:00:27]} 30. d7 {[%clk 0:00:39]}  Qxd7 {[%clk 0:00:18]} 31. Qxg6+ {[%clk 0:00:39]}  Kh8 {[%clk 0:00:19]} 32. Qxh6# {[%clk 0:00:39]} 1-0

[Event "January 2 Early 2024"]
[Site "https://www.chess.com"]
[Date "2024.01.02"]
[Round "3"]
[White "Bartel, Michal"]
[Black "Klymchuk, Andriy"]
[Result "1/2-1/2"]
[Board "35"]
[TimeControl "180+1"]
[WhiteFideId "1119257"]
[BlackFideId "14140063"]
[WhiteElo "2649"]
[BlackElo "2895"]
[WhiteTeam "POL"]
[BlackTeam "UKR"]
[WhiteClock "0:00:37"]
[BlackClock "0:00:22"]

1. e4 {[%clk 0:03:00]}  c5 {[%clk 0:02:58]} 2. Ne2 {[%clk 0:03:01]}  Nc6 {[%clk 0:02:57]} 3. g3 {[%clk 0:03:01]}  g6 {[%clk 0:02:57]} 4. Bg2 {[%clk 0:03:01]}  Bg7 {[%clk 0:02:58]} 5. c3 {[%clk 0:03:02]}  e5 {[%clk 0:02:56]} 6. d3 {[%clk 0:03:02]}  Nge7 {[%clk 0:02:55]} 7. Be3 {[%clk 0:03:03]}  d6 {[%clk 0:02:53]} 8. O-O {[%clk 0:03:03]}  O-O {[%clk 0:02:53]} 9. f4 {[%clk 0:03:03]}  exf4 {[%clk 0:02:51]} 10. Nxf4 {[%clk 0:02:59]}  Rb8 {[%clk 0:02:49]} 11. Nd2 {[%clk 0:02:59]}  b5 {[%clk 0:02:49]} 12. Nf3 {[%clk 0:02:55]}  b4 {[%clk 0:02:37]} 13. d4 {[%clk 0:02:52]}  bxc3 {[%clk 0:02:36]} 14. bxc3 {[%clk 0:02:53]}  Qa5 {[%clk 0:02:31]} 15. Nd5 {[%clk 0:02:32]}  cxd4 {[%clk 0:02:20]} 16. Nxe7+ {[%clk 0:02:29]}  Nxe7 {[%clk 0:02:19]} 17. cxd4 {[%clk 0:02:27]}  Bg4 {[%clk 0:02:12]} 18. Qd3 {[%clk 0:02:19]}  Rb2 {[%clk 0:02:03]} 19. Rf2 {[%clk 0:01:59]}  Rxf2 {[%clk 0:01:58]} 20. Bxf2 {[%clk 0:02:00]}  Rb8 {[%clk 0:01:44]} 21. Rb1 {[%clk 0:01:33]}  Rxb1+ {[%clk 0:01:25]} 22. Qxb1 {[%clk 0:01:34]}  Qc7 {[%clk 0:01:22]} 23. h3 {[%clk 0:01:29]}  Bxf3 {[%clk 0:01:22]} 24. Bxf3 {[%clk 0:01:30]}  Nc6 {[%clk 0:01:22]} 25. e5 {[%clk 0:01:20]}  dxe5 {[%clk 0:00:58]} 26. Qc2 {[%clk 0:01:16]}  e4 {[%clk 0:00:58]} 27. Bxe4 {[%clk 0:01:13]}  Bxd4 {[%clk 0:00:55]} 28. Bf3 {[%clk 0:01:06]}  Qxg3+ {[%clk 0:00:54]} 29. Bg2 {[%clk 0:00:57]}  Bxf2+ {[%clk 0:00:46]} 30. Qxf2 {[%clk 0:00:54]}  Qxf2+ {[%clk 0:00:46]} 31. Kxf2 {[%clk 0:00:55]}  Ne5 {[%clk 0:00:47]} 32. Ke3 {[%clk 0:00:48]}  f6 {[%clk 0:00:47]} 33. Kd4 {[%clk 0:00:40]}  Kf7 {[%clk 0:00:47]} 34. Kc5 {[%clk 0:00:39]}  Ke6 {[%clk 0:00:48]} 35. Kb5 {[%clk 0:00:40]}  Kd6 {[%clk 0:00:45]} 36. Ka6 {[%clk 0:00:40]}  Kc7 {[%clk 0:00:43]} 37. Kxa7 {[%clk 0:00:41]}  f5 {[%clk 0:00:42]} 38. Ka6 {[%clk 0:00:41]}  f4 {[%clk 0:00:41]} 39. Kb5 {[%clk 0:00:41]}  f3 {[%clk 0:00:40]} 40. Bf1 {[%clk 0:00:41]}  f2 {[%clk 0:00:40]} 41. Kc5 {[%clk 0:00:39]}  Nf3 {[%clk 0:00:40]} 42. Kd5 {[%clk 0:00:39]}  Nh2 {[%clk 0:00:41]} 43. Be2 {[%clk 0:00:38]}  f1=Q {[%clk 0:00:41]} 44. Bxf1 {[%clk 0:00:39]}  Nxf1 {[%clk 0:00:42]} 45. Ke6 {[%clk 0:00:40]}  Ng3 {[%clk 0:00:31]} 46. Kf6 {[%clk 0:00:40]}  Nh5+ {[%clk 0:00:22]} 47. Kg5 {[%clk 0:00:39]}  Kd6 {[%clk 0:00:20]} 48. Kh6 {[%clk 0:00:37]}  Ke6 {[%clk 0:00:20]} 49. Kxh7 {[%clk 0:00:37]}  Kf5 {[%clk 0:00:20]} 50. Kh6 {[%clk 0:00:38]}  Nf4 {[%clk 0:00:20]} 51. h4 {[%clk 0:00:38]}  Ng2 {[%clk 0:00:20]} 52. h5 {[%clk 0:00:38]}  g5 {[%clk 0:00:20]} 53. Kg7 {[%clk 0:00:37]}  Nf4 {[%clk 0:00:19]} 54. h6 {[%clk 0:00:38]}  Nh5+ {[%clk 0:00:19]} 55. Kf7 {[%clk 0:00:37]}  Nf6 {[%clk 0:00:20]} 56. a4 {[%clk 0:00:37]}  g4 {[%clk 0:00:20]} 57. a5 {[%clk 0:00:38]}  g3 {[%clk 0:00:21]} 58. a6 {[%clk 0:00:38]}  g2 {[%clk 0:00:21]} 59. a7 {[%clk 0:00:39]}  g1=Q {[%clk 0:00:22]} 60. a8=Q {[%clk 0:00:40]}  Qg6+ {[%clk 0:00:22]} 61. Ke7 {[%clk 0:00:40]}  Qxh6 {[%clk 0:00:22]} 62. Qf3+ {[%clk 0:00:39]}  Kg6 {[%clk 0:00:22]} 63. Qxf6+ {[%clk 0:00:39]}  Kh5 {[%clk 0:00:22]} 64. Qxh6+ {[%clk 0:00:37]}  Kxh6 {[%clk 0:00:22]} 1/2-1/2

[Event "January 2 Early 2024"]
[Site "https://www.chess.com"]
[Date "2024.01.02"]
[Round "3"]
[White "Munoz Galvez, Jhon Edison"]
[Black "Perez Ponsa, Federico"]
[Result "0-1"]
[Board "37"]
[TimeControl "180+1"]
[WhiteFideId "4403797"]
[BlackFideId "117927"]
[WhiteElo "2639"]
[BlackElo "2880"]
[WhiteTeam "COL"]
[BlackTeam "ARG"]
[WhiteClock "0:00:00"]
[BlackClock "0:00:17"]

1. d4 {[%clk 0:03:00]}  Nf6 {[%clk 0:02:57]} 2. Nf3 {[%clk 0:02:59]}  d5 {[%clk 0:02:56]} 3. c4 {[%clk 0:02:59]}  e6 {[%clk 0:02:56]} 4. Nc3 {[%clk 0:02:58]}  dxc4 {[%clk 0:02:56]} 5. e3 {[%clk 0:02:56]}  a6 {[%clk 0:02:56]} 6. a4 {[%clk 0:02:55]}  b6 {[%clk 0:02:54]} 7. Bxc4 {[%clk 0:02:55]}  Bb7 {[%clk 0:02:55]} 8. O-O {[%clk 0:02:56]}  c5 {[%clk 0:02:56]} 9. Qe2 {[%clk 0:02:55]}  Nbd7 {[%clk 0:02:47]} 10. Rd1 {[%clk 0:02:54]}  Qc7 {[%clk 0:02:42]} 11. d5 {[%clk 0:02:43]}  exd5 {[%clk 0:02:38]} 12. Nxd5 {[%clk 0:02:41]}  Nxd5 {[%clk 0:02:38]} 13. Bxd5 {[%clk 0:02:41]}  Bxd5 {[%clk 0:02:39]} 14. Rxd5 {[%clk 0:02:41]}  Be7 {[%clk 0:02:39]} 15. e4 {[%clk 0:02:41]}  O-O {[%clk 0:02:36]} 16. e5 {[%clk 0:02:40]}  Qc6 {[%clk 0:02:30]} 17. Rd1 {[%clk 0:02:13]}  Rfe8 {[%clk 0:02:29]} 18. Bf4 {[%clk 0:02:13]}  Nf8 {[%clk 0:02:20]} 19. h4 {[%clk 0:02:11]}  Ne6 {[%clk 0:02:18]} 20. Bg3 {[%clk 0:02:08]}  h6 {[%clk 0:02:11]} 21. b3 {[%clk 0:01:40]}  Bf8 {[%clk 0:02:06]} 22. Rac1 {[%clk 0:01:25]}  b5 {[%clk 0:02:03]} 23. axb5 {[%clk 0:01:22]}  axb5 {[%clk 0:02:04]} 24. Nd4 {[%clk 0:01:16]}  Nxd4 {[%clk 0:01:47]} 25. Rxd4 {[%clk 0:01:14]}  Qe6 {[%clk 0:01:48]} 26. Rd3 {[%clk 0:01:11]}  Ra3 {[%clk 0:01:46]} 27. Qb2 {[%clk 0:01:07]}  Rea8 {[%clk 0:01:46]} 28. Rcd1 {[%clk 0:01:01]}  c4 {[%clk 0:01:37]} 29. bxc4 {[%clk 0:01:01]}  Rxd3 {[%clk 0:01:36]} 30. Rxd3 {[%clk 0:01:01]}  Qxc4 {[%clk 0:01:36]} 31. Rc3 {[%clk 0:00:31]}  Qd5 {[%clk 0:01:30]} 32. Kh2 {[%clk 0:00:25]}  b4 {[%clk 0:01:21]} 33. Rc7 {[%clk 0:00:20]}  b3 {[%clk 0:01:16]} 34. Rc3 {[%clk 0:00:18]}  Rb8 {[%clk 0:01:09]} 35. Re3 {[%clk 0:00:18]}  Rb4 {[%clk 0:01:03]} 36. Rf3 {[%clk 0:00:18]}  Be7 {[%clk 0:00:58]} 37. Qc1 {[%clk 0:00:11]}  b2 {[%clk 0:00:47]} 38. Qc8+ {[%clk 0:00:10]}  Qd8 {[%clk 0:00:42]} 39. Qf5 {[%clk 0:00:09]}  b1=Q {[%clk 0:00:40]} 40. Qxf7+ {[%clk 0:00:09]}  Kh8 {[%clk 0:00:40]} 41. e6 {[%clk 0:00:08]}  Bxh4 {[%clk 0:00:29]} 42. Be5 {[%clk 0:00:07]}  Rg4 {[%clk 0:00:18]} 43. Qh5 {[%clk 0:00:00]}  Qg6 {[%clk 0:00:17]} 0-1

[Event "January 2 Early 2024"]
[Site "https://www.chess.com"]
[Date "2024.01.02"]
[Round "3"]
[White "Rustemov, Alexander"]
[Black "Niedbala, Bartlomiej"]
[Result "1/2-1/2"]
[Board "39"]
[TimeControl "180+1"]
[WhiteFideId "4119002"]
[BlackFideId "21834008"]
[WhiteElo "2857"]
[BlackElo "2622"]
[WhiteTeam "RUS"]
[BlackTeam "POL"]
[WhiteClock "0:00:12"]
[BlackClock "0:00:21"]

1. d4 {[%clk 0:03:00]}  Nf6 {[%clk 0:02:57]} 2. c4 {[%clk 0:03:01]}  e6 {[%clk 0:02:56]} 3. Nf3 {[%clk 0:03:01]}  d5 {[%clk 0:02:55]} 4. cxd5 {[%clk 0:03:00]}  exd5 {[%clk 0:02:55]} 5. Nc3 {[%clk 0:03:01]}  c6 {[%clk 0:02:55]} 6. Bf4 {[%clk 0:03:01]}  Bf5 {[%clk 0:02:51]} 7. e3 {[%clk 0:02:59]}  Qb6 {[%clk 0:02:38]} 8. Qb3 {[%clk 0:02:54]}  Nbd7 {[%clk 0:02:29]} 9. h3 {[%clk 0:02:52]}  Be7 {[%clk 0:02:21]} 10. Be2 {[%clk 0:02:51]}  O-O {[%clk 0:02:21]} 11. Nd2 {[%clk 0:02:47]}  Rfe8 {[%clk 0:02:13]} 12. g4 {[%clk 0:02:47]}  Bg6 {[%clk 0:02:13]} 13. h4 {[%clk 0:02:46]}  h5 {[%clk 0:02:07]} 14. g5 {[%clk 0:02:43]}  Nh7 {[%clk 0:02:04]} 15. Rg1 {[%clk 0:02:36]}  Nhf8 {[%clk 0:02:03]} 16. f3 {[%clk 0:02:31]}  Ne6 {[%clk 0:02:03]} 17. Bg3 {[%clk 0:02:30]}  Bf8 {[%clk 0:01:35]} 18. Kf2 {[%clk 0:02:16]}  a5 {[%clk 0:00:54]} 19. Qxb6 {[%clk 0:02:12]}  Nxb6 {[%clk 0:00:54]} 20. Rac1 {[%clk 0:02:10]}  a4 {[%clk 0:00:53]} 21. a3 {[%clk 0:02:04]}  Bf5 {[%clk 0:00:52]} 22. Rgd1 {[%clk 0:01:47]}  g6 {[%clk 0:00:49]} 23. Nf1 {[%clk 0:01:44]}  Bh3 {[%clk 0:00:48]} 24. Be5 {[%clk 0:01:38]}  Ng7 {[%clk 0:00:43]} 25. Ng3 {[%clk 0:01:34]}  Be6 {[%clk 0:00:37]} 26. Bd3 {[%clk 0:01:31]}  Nd7 {[%clk 0:00:36]} 27. Bf4 {[%clk 0:01:26]}  Nb6 {[%clk 0:00:33]} 28. e4 {[%clk 0:01:24]}  Kh8 {[%clk 0:00:28]} 29. Be5 {[%clk 0:01:19]}  Kg8 {[%clk 0:00:28]} 30. Re1 {[%clk 0:01:17]}  Rac8 {[%clk 0:00:28]} 31. Re2 {[%clk 0:01:15]}  dxe4 {[%clk 0:00:28]} 32. fxe4 {[%clk 0:01:02]}  Nd7 {[%clk 0:00:27]} 33. Bf4 {[%clk 0:01:00]}  Bg4 {[%clk 0:00:27]} 34. Ree1 {[%clk 0:00:59]}  Ra8 {[%clk 0:00:28]} 35. e5 {[%clk 0:00:54]}  Ne6 {[%clk 0:00:27]} 36. Be3 {[%clk 0:00:53]}  Red8 {[%clk 0:00:28]} 37. Nge4 {[%clk 0:00:52]}  Be7 {[%clk 0:00:28]} 38. Bc2 {[%clk 0:00:51]}  Bf5 {[%clk 0:00:29]} 39. Nf6+ {[%clk 0:00:47]}  Bxf6 {[%clk 0:00:28]} 40. Bxf5 {[%clk 0:00:47]}  Be7 {[%clk 0:00:24]} 41. Be4 {[%clk 0:00:36]}  Nb6 {[%clk 0:00:24]} 42. Rcd1 {[%clk 0:00:34]}  Nc7 {[%clk 0:00:25]} 43. Kf3 {[%clk 0:00:32]}  Nc4 {[%clk 0:00:25]} 44. Bc1 {[%clk 0:00:31]}  Nd5 {[%clk 0:00:25]} 45. Nxd5 {[%clk 0:00:17]}  cxd5 {[%clk 0:00:26]} 46. Bd3 {[%clk 0:00:18]}  b5 {[%clk 0:00:26]} 47. e6 {[%clk 0:00:18]}  Rf8 {[%clk 0:00:27]} 48. Kg2 {[%clk 0:00:15]}  Bd6 {[%clk 0:00:24]} 49. exf7+ {[%clk 0:00:15]}  Kxf7 {[%clk 0:00:25]} 50. Rf1+ {[%clk 0:00:14]}  Kg7 {[%clk 0:00:26]} 51. Rxf8 {[%clk 0:00:15]}  Rxf8 {[%clk 0:00:27]} 52. Re1 {[%clk 0:00:15]}  Kf7 {[%clk 0:00:24]} 53. Rf1+ {[%clk 0:00:15]}  Kg7 {[%clk 0:00:25]} 54. Re1 {[%clk 0:00:13]}  Kf7 {[%clk 0:00:21]} 55. Rf1+ {[%clk 0:00:12]}  Kg7 {[%clk 0:00:21]} 56. Re1 {[%clk 0:00:12]} 1/2-1/2